fUST/lending_fUST_20250731
["ID","MTS","AMOUNT","RATE_DAILY","PERIOD"]
[376427417,1753974640754,-500.0,0.00019178,2]
[376427419,1753974640766,-12.6934154,0.00019178,2]
[376427421,1753974640778,-613.0165846,0.00019178,2]
[376427423,1753974640787,-460.0,0.00019178,2]
[376427425,1753974640797,-460.0,0.00019178,2]
[376427427,1753974640806,-460.0,0.00019178,2]
[376427429,1753974640815,-1655.64,0.00019178,2]
[376427431,1753974640825,-460.0,0.00019178,2]
[376427433,1753974640834,-1114.18,0.00019178,2]
[376427435,1753974640843,-500.0,0.00019178,2]
[376427437,1753974640853,-497.07,0.00019178,2]
[376427439,1753974640864,-642.31,0.00019178,2]
[376427441,1753974640873,-2578.14,0.00019178,2]
[376427443,1753974640882,-500.0,0.00019178,2]
[376427445,1753974640891,-460.0,0.00019178,2]
[376427447,1753974640900,-509.14,0.00019178,2]
[376427449,1753974640910,-460.0,0.00019178,2]
[376427451,1753974640919,-500.0,0.00019178,2]
[376427453,1753974640928,-460.0,0.00019178,2]
[376427455,1753974640938,-460.0,0.00019178,2]
[376427457,1753974640947,-5760.72,0.00019178,2]
[376427459,1753974640957,-911.07,0.00019178,2]
[376427461,1753974640966,-460.0,0.00019178,2]
[376427463,1753974640975,-337.92492047,0.00019178,2]
[376427466,1753974640988,-160.77728902,0.00019178,2]
[376427467,1753974640997,-460.0,0.00019178,2]
[376427470,1753974641006,-510.86342898,0.00019178,2]
[376427472,1753974641020,-452.80657102,0.00019178,2]
[376427474,1753974641029,-1016.47567332,0.00019178,2]
[376427475,1753974641040,-1322.85432668,0.00019178,2]
[376427476,1753974641049,-460.0,0.00019178,2]
[376427477,1753974641059,-349.09154665,0.00019178,2]
[376427478,1753974641068,-460.0,0.00019178,2]
[376427479,1753974641079,-244.36408265,0.00019178,2]
[376427480,1753974641090,-171.05485786,0.00019178,2]
[376427481,1753974641100,-151.0,0.00019178,2]
[376427482,1753974641109,-460.0,0.00019178,2]
[376427483,1753974641118,-460.0,0.00019178,2]
[376427484,1753974641127,-248.12800167,0.00019178,2]
[376427485,1753974641136,-496.53454974,0.00019178,2]
[376427498,1753974641360,-8.99993576,0.00019178,2]
[376427500,1753974641370,-460.0,0.00019178,2]
[376427502,1753974641379,-460.0,0.00019178,2]
[376427504,1753974641389,-3071.28,0.00019178,2]
[376427506,1753974641401,-883.2,0.00019178,2]
[376427508,1753974641419,-460.0,0.00019178,2]
[376427510,1753974641428,-460.0,0.00019178,2]
[376427512,1753974641437,-460.0,0.00019178,2]
[376427514,1753974641447,-460.0,0.00019178,2]
[376427516,1753974641456,-4210.49266652,0.00019178,2]
[376427518,1753974641467,-576.0,0.00019178,2]
[376427658,1753974642797,-3642.25733348,0.00019178,2]
[376427661,1753974642807,-3005.09,0.00019178,2]
[376427663,1753974642817,-460.0,0.00019178,2]
[376427666,1753974642826,-460.0,0.00019178,2]
[376427668,1753974642835,-460.0,0.00019178,2]
[376427670,1753974642844,-460.0,0.00019178,2]
[376427672,1753974642854,-460.0,0.00019178,2]
[376427674,1753974642863,-296.60437025,0.00019178,2]
[376427676,1753974642872,-460.0,0.00019178,2]
[376427678,1753974642882,-2680.59,0.00019178,2]
[376427680,1753974642891,-460.0,0.00019178,2]
[376427682,1753974642900,-460.0,0.00019178,2]
[376427684,1753974642910,-589.22367995,0.00019178,2]
[376427686,1753974642919,-460.0,0.00019178,2]
[376427689,1753974642928,-495.64,0.00019178,2]
[376427691,1753974642938,-460.0,0.00019178,2]
[376427693,1753974642947,-460.0,0.00019178,2]
[376427695,1753974642956,-460.0,0.00019178,2]
[376427697,1753974642967,-460.0,0.00019178,2]
[376427699,1753974642976,-460.0,0.00019178,2]
[376427701,1753974642985,-460.0,0.00019178,2]
[376427703,1753974642994,-460.0,0.00019178,2]
[376427705,1753974643003,-556.06,0.00019178,2]
[376427707,1753974643014,-460.0,0.00019178,2]
[376427709,1753974643023,-2210.4,0.00019178,2]
[376427711,1753974643033,-460.0,0.00019178,2]
[376427713,1753974643042,-460.0,0.00019178,2]
[376427715,1753974643053,-1133.35,0.00019178,2]
[376427717,1753974643062,-495.88310651,0.00019178,2]
[376427719,1753974643071,-460.0,0.00019178,2]
[376427721,1753974643081,-460.0,0.00019178,2]
[376427723,1753974643090,-460.0,0.00019178,2]
[376427725,1753974643100,-590.19,0.00019178,2]
[376427727,1753974643109,-460.0,0.00019178,2]
[376427729,1753974643119,-461.31,0.00019178,2]
[376427733,1753974643128,-460.0,0.00019178,2]
[376427734,1753974643138,-560.89,0.00019178,2]
[376427737,1753974643147,-686.12,0.00019178,2]
[376427739,1753974643156,-460.0,0.00019178,2]
[376427741,1753974643166,-460.0,0.00019178,2]
[376427742,1753974643176,-1536.39140981,0.00019178,2]
[376427745,1753974643193,-128.91859019,0.00019178,2]
[376427747,1753974643202,-213.42930971,0.00019178,2]
[376427856,1753974644175,-246.57069029,0.00019178,2]
[376427858,1753974644191,-564.67334969,0.00019178,2]
[376427860,1753974644200,-460.0,0.00019178,2]
[376427862,1753974644210,-460.0,0.00019178,2]
[376427864,1753974644220,-460.0,0.00019178,2]
[376427866,1753974644230,-460.0,0.00019178,2]
[376427868,1753974644239,-626.6,0.00019178,2]
[376427870,1753974644248,-699.17,0.00019178,2]
[376427872,1753974644259,-460.0,0.00019178,2]
[376427874,1753974644270,-460.0,0.00019178,2]
[376427876,1753974644279,-460.0,0.00019178,2]
[376427878,1753974644289,-460.0,0.00019178,2]
[376427880,1753974644299,-460.0,0.00019178,2]
[376427882,1753974644308,-196.93835719,0.00019178,2]
[376427884,1753974644318,-460.0,0.00019178,2]
[376427886,1753974644327,-460.0,0.00019178,2]
[376427888,1753974644336,-564.03,0.00019178,2]
[376427890,1753974644345,-2835.65,0.00019178,2]
[376427892,1753974644354,-460.0,0.00019178,2]
[376427894,1753974644363,-683.53,0.00019178,2]
[376427896,1753974644373,-479.16,0.00019178,2]
[376427898,1753974644382,-460.0,0.00019178,2]
[376427900,1753974644391,-460.0,0.00019178,2]
[376427902,1753974644400,-900.28,0.00019178,2]
[376427904,1753974644410,-1115.44,0.00019178,2]
[376427906,1753974644419,-460.0,0.00019178,2]
[376427908,1753974644429,-460.0,0.00019178,2]
[376427910,1753974644438,-272.21272732,0.00019178,2]
[376427912,1753974644447,-460.0,0.00019178,2]
[376427914,1753974644457,-460.0,0.00019178,2]
[376427916,1753974644466,-460.0,0.00019178,2]
[376427918,1753974644475,-460.0,0.00019178,2]
[376427920,1753974644484,-903.2,0.00019178,2]
[376427922,1753974644493,-460.0,0.00019178,2]
[376427924,1753974644504,-460.0,0.00019178,2]
[376427926,1753974644515,-460.0,0.00019178,2]
[376427928,1753974644524,-460.0,0.00019178,2]
[376427930,1753974644534,-210.84374368,0.00019178,2]
[376427932,1753974644543,-460.0,0.00019178,2]
[376427934,1753974644553,-460.0,0.00019178,2]
[376427936,1753974644562,-746.04,0.00019178,2]
[376427938,1753974644571,-460.0,0.00019178,2]
[376427940,1753974644580,-460.0,0.00019178,2]
[376427942,1753974644589,-275.42816555,0.00019178,2]
[376427944,1753974644598,-460.0,0.00019178,2]
[376427946,1753974644608,-500.0,0.00019178,2]
[376427948,1753974644617,-460.0,0.00019178,2]
[376427950,1753974644625,-249.72293544,0.00019178,2]
[376427952,1753974644635,-460.0,0.00019178,2]
[376427954,1753974644644,-2666.08,0.00019178,2]
[376427956,1753974644653,-500.0,0.00019178,2]
[376427958,1753974644662,-460.0,0.00019178,2]
[376427960,1753974644671,-460.0,0.00019178,2]
[376427962,1753974644680,-500.0,0.00019178,2]
[376427964,1753974644689,-460.0,0.00019178,2]
[376427966,1753974644699,-460.0,0.00019178,2]
[376427968,1753974644709,-460.0,0.00019178,2]
[376427970,1753974644719,-460.0,0.00019178,2]
[376427972,1753974644729,-489.45426339,0.00019178,2]
[376427974,1753974644739,-460.0,0.00019178,2]
[376427976,1753974644749,-460.0,0.00019178,2]
[376427978,1753974644758,-882.49,0.00019178,2]
[376427980,1753974644771,-461.96020444,0.00019178,2]
[376427982,1753974644780,-342.61798437,0.00019178,2]
[376427984,1753974644790,-239.83258906,0.00019178,2]
[376427986,1753974644799,-167.88281234,0.00019178,2]
[376427988,1753974644808,-151.0,0.00019178,2]
[376427990,1753974644817,-460.0,0.00019178,2]
[376427992,1753974644827,-240.72656214,0.00019178,2]
[376427994,1753974644837,-460.0,0.00019178,2]
[376427996,1753974644846,-460.0,0.00019178,2]
[376427998,1753974644856,-460.0,0.00019178,2]
[376428000,1753974644865,-460.0,0.00019178,2]
[376428002,1753974644875,-705.54,0.00019178,2]
[376428004,1753974644885,-154.68968948,0.00019178,2]
[376428006,1753974644895,-154.0,0.00019178,2]
[376428008,1753974644905,-154.0,0.00019178,2]
[376428010,1753974644914,-1756.0,0.00019178,2]
[376428012,1753974644924,-590.49,0.00019178,2]
[376428014,1753974644933,-1756.0,0.00019178,2]
[376428016,1753974644943,-257.33930208,0.00019178,2]
[376428018,1753974644953,-500.0,0.00019178,2]
[376428020,1753974644962,-500.60577677,0.00019178,2]
[376428022,1753974644972,-154.0,0.00019178,2]
[376428024,1753974644981,-1756.0,0.00019178,2]
[376428026,1753974644991,-154.0,0.00019178,2]
[376428028,1753974645000,-1756.0,0.00019178,2]
[376428030,1753974645010,-154.0,0.00019178,2]
[376428032,1753974645021,-1756.0,0.00019178,2]
[376428034,1753974645030,-460.0,0.00019178,2]
[376428036,1753974645040,-460.0,0.00019178,2]
[376428038,1753974645049,-1756.0,0.00019178,2]
[376428041,1753974645059,-460.0,0.00019178,2]
[376428043,1753974645069,-1756.0,0.00019178,2]
[376428045,1753974645079,-195.32635102,0.00019178,2]
[376428047,1753974645088,-1756.0,0.00019178,2]
[376428049,1753974645097,-1756.0,0.00019178,2]
[376428051,1753974645107,-661.04,0.00019178,2]
[376428052,1753974645116,-460.0,0.00019178,2]
[376428054,1753974645125,-325.0,0.00019178,2]
[376428056,1753974645134,-178.21728792,0.00019178,2]
[376428058,1753974645144,-2109.36,0.00019178,2]
[376428060,1753974645154,-1993.60575175,0.00019178,2]
[376428063,1753974645168,-3006.39424825,0.00019178,2]
[376428065,1753974645179,-500.0,0.00019178,2]
[376428067,1753974645191,-198.465335,0.00019178,2]
[376428069,1753974645201,-666.0,0.00019178,2]
[376428071,1753974645210,-178.4967982,0.000192,2]
[376428073,1753974645219,-320.2107096,0.000192,2]
[376428076,1753974645228,-178.4967982,0.000192,2]
[376428077,1753974645383,-178.4967982,0.000192,2]
[376428078,1753974645394,-178.4967982,0.000192,2]
[376428080,1753974645404,-178.4967982,0.000192,2]
[376428081,1753974645414,-181.9812447,0.000192,2]
[376428082,1753974645424,-159.8360077,0.000192,2]
[376428083,1753974645434,-153.309274,0.00019224,3]
[376428085,1753974645443,-151.0,0.00019278,2]
[376428087,1753974645453,-151.0,0.00019278,2]
[376428089,1753974645463,-151.0,0.00019278,2]
[376428091,1753974645472,-151.0,0.00019278,2]
[376428093,1753974645481,-500.0,0.00019278,2]
[376428095,1753974645491,-500.0,0.00019278,2]
[376428097,1753974645500,-517.75961121,0.00019278,2]
[376428099,1753974645509,-212.43172785,0.00019278,2]
[376428101,1753974645519,-500.0,0.00019278,2]
[376428103,1753974645529,-498.88625182,0.00019278,2]
[376428105,1753974645538,-199.22037628,0.00019278,2]
[376428107,1753974645547,-1000.0,0.00019315,2]
[376428109,1753974645556,-1000.0,0.00019315,2]
[376428111,1753974645566,-1000.0,0.00019315,2]
[376428113,1753974645575,-1000.0,0.00019315,2]
[376428115,1753974645585,-1000.0,0.00019315,2]
[376428117,1753974645595,-1000.0,0.00019315,2]
[376428119,1753974645603,-1000.0,0.00019315,2]
[376428121,1753974645612,-1041.88617126,0.00019315,2]
[376428123,1753974645622,-562.51426202,0.00019328,2]
[376428124,1753974645631,-936.10149217,0.00019328,2]
[376428126,1753974645640,-936.10149217,0.00019328,2]
[376428128,1753974645650,-936.10149217,0.00019328,2]
[376428130,1753974645659,-936.10149217,0.00019328,2]
[376428132,1753974645668,-936.10149217,0.00019328,2]
[376428134,1753974645678,-936.10149217,0.00019328,2]
[376428136,1753974645687,-936.10149217,0.00019328,2]
[376428138,1753974645696,-936.10149217,0.00019328,2]
[376428140,1753974645706,-936.10149217,0.00019328,2]
[376428142,1753974645715,-936.10149217,0.00019328,2]
[376428144,1753974645725,-936.10149217,0.00019328,2]
[376428146,1753974645734,-936.10149217,0.00019328,2]
[376428148,1753974645743,-993.70773784,0.00019328,2]
[376428150,1753974645753,-993.70773784,0.00019328,2]
[376428152,1753974645763,-993.70773784,0.00019328,2]
[376428154,1753974645772,-993.70773784,0.00019328,2]
[376428156,1753974645782,-993.70773784,0.00019328,2]
[376428158,1753974645791,-993.70773784,0.00019328,2]
[376428160,1753974645800,-993.70773784,0.00019328,2]
[376428162,1753974645810,-993.70773784,0.00019328,2]
[376428164,1753974645820,-993.70773784,0.00019328,2]
[376428165,1753974645829,-1120.17963175,0.00019328,2]
[376428167,1753974645839,-1120.17963175,0.00019328,2]
[376428169,1753974645849,-1120.17963175,0.00019328,2]
[376428171,1753974645858,-1120.17963175,0.00019328,2]
[376428173,1753974645868,-151.0,0.00019329,2]
[376428175,1753974645877,-151.0,0.00019329,2]
[376428177,1753974645886,-151.0,0.00019329,2]
[376428179,1753974645895,-151.0,0.00019329,2]
[376428181,1753974645905,-152.78858,0.00019329,2]
[376428183,1753974645915,-442.394953,0.00019329,2]
[376428185,1753974645924,-442.394953,0.00019329,2]
[376428187,1753974645934,-151.0,0.00019329,2]
[376428189,1753974645944,-151.0,0.00019329,2]
[376428192,1753974645954,-151.0,0.00019329,2]
[376428194,1753974645963,-151.0,0.00019329,2]
[376428196,1753974645973,-194.192746,0.00019329,2]
[376428198,1753974645982,-194.192746,0.00019329,2]
[376428200,1753974645991,-151.0,0.00019329,2]
[376428202,1753974646001,-151.0,0.00019329,2]
[376428204,1753974646010,-151.0,0.00019329,2]
[376428206,1753974646024,-684.41047519,0.00019329,2]
[376428208,1753974646034,-953.70493515,0.00019341,2]
[376428210,1753974646043,-500.0,0.00019378,2]
[376428212,1753974646052,-453.94230173,0.00019378,2]
[376428214,1753974646061,-426.98035974,0.00019378,2]
[376428216,1753974646071,-334.67545577,0.00019427,2]
[376428218,1753974646080,-151.0,0.00019452,2]
[376428220,1753974646089,-151.0,0.00019452,2]
[376428222,1753974646098,-151.0,0.00019452,2]
[376428224,1753974646108,-151.0,0.00019452,2]
[376428226,1753974646117,-151.0,0.00019452,2]
[376428228,1753974646126,-151.0,0.00019452,2]
[376428231,1753974646136,-151.0,0.00019452,2]
[376428233,1753974646146,-151.0,0.00019452,2]
[376428235,1753974646155,-151.0,0.00019452,2]
[376428237,1753974646164,-151.0,0.00019452,2]
[376428239,1753974646174,-151.0,0.00019452,2]
[376428240,1753974646184,-151.844387,0.00019452,2]
[376428242,1753974646194,-151.0,0.00019452,2]
[376428244,1753974646204,-151.0,0.00019452,2]
[376428247,1753974646214,-151.0,0.00019452,2]
[376428248,1753974646224,-151.0,0.00019452,2]
[376428250,1753974646233,-151.0,0.00019452,2]
[376428252,1753974646242,-152.867621,0.00019452,2]
[376428254,1753974646252,-151.0,0.00019452,2]
[376428256,1753974646266,-151.0,0.00019452,2]
[376428258,1753974646277,-151.0,0.00019452,2]
[376428261,1753974646288,-151.0,0.00019452,2]
[376428263,1753974646298,-214.284977,0.00019452,2]
[376428265,1753974646307,-182.590769,0.00019452,2]
[376428267,1753974646318,-182.590769,0.00019452,2]
[376428269,1753974646327,-151.0,0.00019452,2]
[376428271,1753974646337,-151.0,0.00019452,2]
[376428273,1753974646346,-257.610476,0.00019452,2]
[376428274,1753974646355,-257.610476,0.00019452,2]
[376428277,1753974646365,-151.0,0.00019452,2]
[376428278,1753974646374,-151.0,0.00019452,2]
[376428280,1753974646383,-259.195109,0.00019452,2]
[376428282,1753974646393,-151.0,0.00019452,2]
[376428284,1753974646402,-153.407741,0.00019452,2]
[376428286,1753974646412,-278.123792,0.00019452,2]
[376428288,1753974646421,-278.123792,0.00019452,2]
[376428290,1753974646430,-226.642552,0.00019452,2]
[376428292,1753974646439,-152.987253,0.00019452,2]
[376428294,1753974646448,-275.819136,0.00019452,2]
[376428296,1753974646458,-275.819136,0.00019452,2]
[376428298,1753974646467,-151.0,0.00019452,2]
[376428300,1753974646475,-184.257416,0.00019452,2]
[376428302,1753974646485,-590.699348,0.00019452,2]
[376428304,1753974646494,-590.699348,0.00019452,2]
[376428305,1753974646503,-151.0,0.00019452,2]
[376428307,1753974646512,-211.803963,0.00019452,2]
[376428309,1753974646524,-211.803963,0.00019452,2]
[376428311,1753974646537,-151.402325,0.00019452,2]
[376428313,1753974646555,-151.0,0.00019452,2]
[376428315,1753974646564,-151.0,0.00019452,2]
[376428317,1753974646574,-151.0,0.00019452,2]
[376428319,1753974646583,-212.13292022,0.00019452,2]
[376428321,1753974646593,-151.372557,0.00019452,2]
[376428323,1753974646602,-302.55561391,0.00019452,2]
[376428325,1753974646611,-1341.953483,0.00019452,2]
[376428327,1753974646620,-1341.953483,0.00019452,2]
[376428329,1753974646629,-460.0,0.00019452,2]
[376428331,1753974646639,-460.0,0.00019452,2]
[376428334,1753974646648,-460.0,0.00019452,2]
[376428338,1753974646657,-460.0,0.00019452,2]
[376428341,1753974646666,-460.0,0.00019452,2]
[376428343,1753974646675,-151.0,0.00019452,2]
[376428346,1753974646684,-460.0,0.00019452,2]
[376428349,1753974646693,-460.0,0.00019452,2]
[376428352,1753974646702,-460.0,0.00019452,2]
[376428355,1753974646711,-460.0,0.00019452,2]
[376428358,1753974646720,-460.0,0.00019452,2]
[376428361,1753974646729,-460.0,0.00019452,2]
[376428364,1753974646738,-463.06415516,0.00019452,2]
[376428366,1753974646748,-151.0,0.00019452,2]
[376428369,1753974646758,-271.084025,0.00019452,2]
[376428372,1753974646769,-460.0,0.00019452,2]
[376428374,1753974646778,-368.79217946,0.00019452,2]
[376428376,1753974646787,-460.0,0.00019452,2]
[376428378,1753974646796,-460.0,0.00019452,2]
[376428380,1753974646805,-460.0,0.00019452,2]
[376428382,1753974646814,-151.0,0.00019452,2]
[376428384,1753974646823,-151.0,0.00019452,2]
[376428386,1753974646832,-287.534248,0.00019452,2]
[376428388,1753974646841,-151.0,0.00019452,2]
[376428390,1753974646851,-153.318846,0.00019452,2]
[376428392,1753974646860,-582.41,0.00019452,2]
[376428394,1753974646869,-454.39652137,0.00019452,2]
[376428396,1753974646878,-287.534248,0.00019452,2]
[376428398,1753974646888,-290.638947,0.00019452,2]
[376428400,1753974646897,-460.0,0.00019452,2]
[376428402,1753974646906,-460.0,0.00019452,2]
[376428404,1753974646915,-460.0,0.00019452,2]
[376428406,1753974646924,-460.0,0.00019452,2]
[376428408,1753974646934,-460.0,0.00019452,2]
[376428410,1753974646943,-460.0,0.00019452,2]
[376428412,1753974646953,-151.0,0.00019452,2]
[376428414,1753974646963,-151.0,0.00019452,2]
[376428416,1753974646972,-187.82362653,0.00019452,2]
[376428418,1753974646981,-151.0,0.00019452,2]
[376428420,1753974646990,-460.0,0.00019452,2]
[376428422,1753974646999,-151.0,0.00019452,2]
[376428424,1753974647009,-460.0,0.00019452,2]
[376428426,1753974647020,-484.8264569,0.00019452,2]
[376428428,1753974647029,-460.0,0.00019452,2]
[376428430,1753974647039,-460.0,0.00019452,2]
[376428432,1753974647052,-460.0,0.00019452,2]
[376428434,1753974647061,-460.0,0.00019452,2]
[376428436,1753974647070,-460.0,0.00019452,2]
[376428438,1753974647079,-460.0,0.00019452,2]
[376428440,1753974647089,-378.62376399,0.00019452,2]
[376428442,1753974647098,-460.0,0.00019452,2]
[376428444,1753974647107,-151.0,0.00019452,2]
[376428446,1753974647117,-460.05,0.00019452,2]
[376428448,1753974647127,-460.0,0.00019452,2]
[376428450,1753974647136,-460.0,0.00019452,2]
[376428452,1753974647146,-460.0,0.00019452,2]
[376428454,1753974647155,-460.0,0.00019452,2]
[376428456,1753974647164,-460.0,0.00019452,2]
[376428458,1753974647173,-460.0,0.00019452,2]
[376428460,1753974647185,-460.0,0.00019452,2]
[376428462,1753974647194,-460.0,0.00019452,2]
[376428464,1753974647203,-232.812773,0.00019452,2]
[376428466,1753974647212,-460.0,0.00019452,2]
[376428468,1753974647223,-460.0,0.00019452,2]
[376428470,1753974647232,-461.33514316,0.00019452,2]
[376428471,1753974647241,-460.0,0.00019452,2]
[376428473,1753974647250,-460.0,0.00019452,2]
[376428476,1753974647261,-460.0,0.00019452,2]
[376428478,1753974647272,-460.0,0.00019452,2]
[376428480,1753974647281,-460.0,0.00019452,2]
[376428481,1753974647290,-460.0,0.00019452,2]
[376428483,1753974647299,-460.0,0.00019452,2]
[376428485,1753974647308,-460.0,0.00019452,2]
[376428487,1753974647317,-460.0,0.00019452,2]
[376428489,1753974647326,-460.0,0.00019452,2]
[376428491,1753974647335,-151.0,0.00019452,2]
[376428493,1753974647344,-460.0,0.00019452,2]
[376428495,1753974647354,-154.764458,0.00019452,2]
[376428498,1753974647364,-675.93,0.00019452,2]
[376428500,1753974647373,-460.0,0.00019452,2]
[376428501,1753974647382,-460.0,0.00019452,2]
[376428503,1753974647391,-460.0,0.00019452,2]
[376428505,1753974647401,-460.0,0.00019452,2]
[376428507,1753974647410,-464.55114607,0.00019452,2]
[376428509,1753974647419,-559.02,0.00019452,2]
[376428511,1753974647428,-460.0,0.00019452,2]
[376428513,1753974647437,-460.0,0.00019452,2]
[376428515,1753974647446,-460.0,0.00019452,2]
[376428517,1753974647455,-189.32144326,0.00019452,2]
[376428519,1753974647464,-460.0,0.00019452,2]
[376428521,1753974647473,-460.0,0.00019452,2]
[376428523,1753974647482,-460.0,0.00019452,2]
[376428525,1753974647491,-460.0,0.00019452,2]
[376428527,1753974647500,-460.0,0.00019452,2]
[376428529,1753974647509,-460.0,0.00019452,2]
[376428531,1753974647521,-461.94036111,0.00019452,2]
[376428533,1753974647530,-151.0,0.00019452,2]
[376428535,1753974647539,-153.574195,0.00019452,2]
[376428537,1753974647548,-460.0,0.00019452,2]
[376428539,1753974647558,-460.0,0.00019452,2]
[376428541,1753974647567,-460.0,0.00019452,2]
[376428543,1753974647576,-460.0,0.00019452,2]
[376428545,1753974647585,-890.38,0.00019452,2]
[376428547,1753974647594,-460.0,0.00019452,2]
[376428549,1753974647603,-460.0,0.00019452,2]
[376428551,1753974647612,-460.0,0.00019452,2]
[376428553,1753974647621,-151.0,0.00019452,2]
[376428555,1753974647630,-151.0,0.00019452,2]
[376428557,1753974647640,-460.0,0.00019452,2]
[376428559,1753974647649,-460.0,0.00019452,2]
[376428561,1753974647658,-460.0,0.00019452,2]
[376428563,1753974647667,-460.0,0.00019452,2]
[376428565,1753974647677,-460.0,0.00019452,2]
[376428567,1753974647686,-460.0,0.00019452,2]
[376428569,1753974647696,-151.0,0.00019452,2]
[376428571,1753974647705,-151.0,0.00019452,2]
[376428573,1753974647714,-460.0,0.00019452,2]
[376428575,1753974647724,-460.0,0.00019452,2]
[376428577,1753974647734,-468.76333632,0.00019452,2]
[376428579,1753974647743,-460.0,0.00019452,2]
[376428581,1753974647752,-460.0,0.00019452,2]
[376428583,1753974647762,-469.37,0.00019452,2]
[376428584,1753974647773,-460.0,0.00019452,2]
[376428585,1753974647782,-627.27,0.00019452,2]
[376428586,1753974647791,-271.74624954,0.00019452,2]
[376428587,1753974647801,-710.327011,0.00019452,2]
[376428588,1753974647810,-352.6072872,0.00019452,2]
[376428589,1753974647819,-460.0,0.00019452,2]
[376428591,1753974647829,-710.327011,0.00019452,2]
[376428593,1753974647839,-460.0,0.00019452,2]
[376428595,1753974647848,-461.94376967,0.00019452,2]
[376428597,1753974647857,-460.0,0.00019452,2]
[376428599,1753974647867,-460.0,0.00019452,2]
[376428601,1753974647877,-266.744521,0.00019452,2]
[376428603,1753974647886,-460.0,0.00019452,2]
[376428605,1753974647895,-266.744521,0.00019452,2]
[376428607,1753974647905,-460.0,0.00019452,2]
[376428609,1753974647914,-460.0,0.00019452,2]
[376428611,1753974647923,-614.32,0.00019452,2]
[376428613,1753974647933,-460.0,0.00019452,2]
[376428615,1753974647942,-460.0,0.00019452,2]
[376428617,1753974647951,-165.26404666,0.00019452,2]
[376428620,1753974647972,-294.73595334,0.00019452,2]
[376428622,1753974647981,-460.0,0.00019452,2]
[376428624,1753974647990,-460.0,0.00019452,2]
[376428626,1753974647999,-460.0,0.00019452,2]
[376428628,1753974648008,-460.0,0.00019452,2]
[376428630,1753974648019,-460.0,0.00019452,2]
[376428632,1753974648029,-460.0,0.00019452,2]
[376428634,1753974648038,-460.0,0.00019452,2]
[376428636,1753974648047,-460.0,0.00019452,2]
[376428638,1753974648056,-423.639652,0.00019452,2]
[376428640,1753974648065,-460.0,0.00019452,2]
[376428642,1753974648075,-460.0,0.00019452,2]
[376428644,1753974648085,-423.639652,0.00019452,2]
[376428646,1753974648094,-423.639652,0.00019452,2]
[376428648,1753974648103,-460.0,0.00019452,2]
[376428650,1753974648113,-423.639652,0.00019452,2]
[376428652,1753974648122,-460.0,0.00019452,2]
[376428654,1753974648131,-460.0,0.00019452,2]
[376428656,1753974648141,-460.0,0.00019452,2]
[376428658,1753974648151,-934.516327,0.00019452,2]
[376428660,1753974648160,-934.516327,0.00019452,2]
[376428662,1753974648170,-460.0,0.00019452,2]
[376428664,1753974648183,-460.0,0.00019452,2]
[376428666,1753974648192,-460.0,0.00019452,2]
[376428668,1753974648202,-478.8787632,0.00019452,2]